[Event "Early-Titled-Tuesday-Blitz-January-30-2024"]
[Site "Chess.com"]
[Date "2024.01.30"]
[Round "8"]
[White "NowInChess"]
[Black "gm_rashid"]
[Result "1-0"]
[WhiteElo "2285"]
[BlackElo "2499"]
[TimeControl "180+1"]
[EndTime "9:30:54 PST"]
[Termination "NowInChess won on time"]

1. e4 {[%clk 0:03:00.9]} 1... e6 {[%clk 0:02:58.9]} 2. d3 {[%clk 0:03:00.6]}
2... d5 {[%clk 0:02:59.3]} 3. Nd2 {[%clk 0:03:01.1]} 3... Nf6 {[%clk 0:02:59.8]}
4. Ngf3 {[%clk 0:03:01.3]} 4... Be7 {[%clk 0:02:55]} 5. g3 {[%clk 0:03:00]} 5...
h6 {[%clk 0:02:52.2]} 6. Bg2 {[%clk 0:02:59]} 6... O-O {[%clk 0:02:51.9]} 7. e5
{[%clk 0:02:57.9]} 7... Nh7 {[%clk 0:02:51.1]} 8. O-O {[%clk 0:02:57.6]} 8... c5
{[%clk 0:02:51.7]} 9. h4 {[%clk 0:02:54.4]} 9... Nc6 {[%clk 0:02:51.8]} 10. Re1
{[%clk 0:02:54.3]} 10... b5 {[%clk 0:02:50.1]} 11. c4 {[%clk 0:02:48.4]} 11...
bxc4 {[%clk 0:02:44.5]} 12. dxc4 {[%clk 0:02:49.3]} 12... Rb8 {[%clk 0:02:43.2]}
13. b3 {[%clk 0:02:22]} 13... Nb4 {[%clk 0:02:32.5]} 14. Ba3 {[%clk 0:01:57.7]}
14... Qa5 {[%clk 0:02:27.4]} 15. Bxb4 {[%clk 0:01:56.4]} 15... Qxb4 {[%clk
0:02:26.9]} 16. Qc2 {[%clk 0:01:44.8]} 16... Rd8 {[%clk 0:02:25.3]} 17. Rad1
{[%clk 0:01:41.8]} 17... Ba6 {[%clk 0:02:19.6]} 18. Rc1 {[%clk 0:01:11.4]} 18...
Bb7 {[%clk 0:02:07]} 19. Qc3 {[%clk 0:00:42.7]} 19... Qxc3 {[%clk 0:01:58.7]}
20. Rxc3 {[%clk 0:00:43.6]} 20... a5 {[%clk 0:01:58.2]} 21. a4 {[%clk
0:00:34.7]} 21... Ba6 {[%clk 0:01:56]} 22. Rcc1 {[%clk 0:00:31.2]} 22... Nf8
{[%clk 0:01:55.7]} 23. Nh2 {[%clk 0:00:23.8]} 23... Rb4 {[%clk 0:01:38.2]} 24.
cxd5 {[%clk 0:00:11.7]} 24... exd5 {[%clk 0:01:37.6]} 25. Ng4 {[%clk 0:00:11.2]}
25... Ne6 {[%clk 0:01:36.1]} 26. Ne3 {[%clk 0:00:10]} 26... Bb7 {[%clk
0:01:31.5]} 27. Nc2 {[%clk 0:00:06.5]} 27... Rb6 {[%clk 0:01:30.1]} 28. Ne3
{[%clk 0:00:05.6]} 28... Nd4 {[%clk 0:01:27.8]} 29. Rb1 {[%clk 0:00:04.3]} 29...
Ba8 {[%clk 0:01:10.5]} 30. Kh1 {[%clk 0:00:04.2]} 30... h5 {[%clk 0:00:43.3]}
31. f4 {[%clk 0:00:02.9]} 31... g6 {[%clk 0:00:42.9]} 32. f5 {[%clk 0:00:02.4]}
32... Nxf5 {[%clk 0:00:30.3]} 33. Nxf5 {[%clk 0:00:02.2]} 33... gxf5 {[%clk
0:00:30.8]} 34. Rf1 {[%clk 0:00:02.4]} 34... Rg6 {[%clk 0:00:28.1]} 35. Kh2
{[%clk 0:00:01.7]} 35... Bf8 {[%clk 0:00:19.2]} 36. Rxf5 {[%clk 0:00:02.2]}
36... Bg7 {[%clk 0:00:14.3]} 37. Rbf1 {[%clk 0:00:02.9]} 37... d4 {[%clk
0:00:10.6]} 38. Rxf7 {[%clk 0:00:02.9]} 38... Bxe5 {[%clk 0:00:10.1]} 39. Bxa8
{[%clk 0:00:02.3]} 39... Rxa8 {[%clk 0:00:09.6]} 40. R7f5 {[%clk 0:00:02.1]}
40... Bxg3+ {[%clk 0:00:09]} 41. Kh3 {[%clk 0:00:02.7]} 41... Re8 {[%clk
0:00:07.9]} 42. Rg5 {[%clk 0:00:02.3]} 42... Rxg5 {[%clk 0:00:07]} 43. hxg5
{[%clk 0:00:03.2]} 43... Re3 {[%clk 0:00:06.2]} 44. Kg2 {[%clk 0:00:02]} 44...
Rd3 {[%clk 0:00:04.9]} 45. Nc4 {[%clk 0:00:02.2]} 45... Rxb3 {[%clk 0:00:03.6]}
46. Rf6 {[%clk 0:00:02.4]} 46... Kg7 {[%clk 0:00:01.6]} 47. Rc6 {[%clk
0:00:01.6]} 1-0

[Event "Early-Titled-Tuesday-Blitz-January-30-2024"]
[Site "Chess.com"]
[Date "2024.01.30"]
[Round "8"]
[White "jjlai1111"]
[Black "dennisodessa"]
[Result "0-1"]
[WhiteElo "2341"]
[BlackElo "2618"]
[TimeControl "180+1"]
[EndTime "9:30:55 PST"]
[Termination "dennisodessa won on time"]

1. d4 {[%clk 0:03:00.9]} 1... Nf6 {[%clk 0:02:59.7]} 2. c4 {[%clk 0:03:01.2]}
2... e6 {[%clk 0:03:00.2]} 3. Nc3 {[%clk 0:03:01.7]} 3... Bb4 {[%clk 0:03:00.9]}
4. Qc2 {[%clk 0:03:02.3]} 4... Nc6 {[%clk 0:03:00.6]} 5. Nf3 {[%clk 0:03:01.8]}
5... d6 {[%clk 0:03:01.3]} 6. Bg5 {[%clk 0:03:00.3]} 6... h6 {[%clk 0:03:00.8]}
7. Bh4 {[%clk 0:02:59.8]} 7... g5 {[%clk 0:03:00.6]} 8. Bg3 {[%clk 0:02:51.8]}
8... g4 {[%clk 0:03:00.3]} 9. Nd2 {[%clk 0:02:52.5]} 9... Nxd4 {[%clk
0:03:00.4]} 10. Qa4+ {[%clk 0:02:44.1]} 10... Bd7 {[%clk 0:02:57]} 11. Qd1
{[%clk 0:02:41]} 11... e5 {[%clk 0:02:57]} 12. e3 {[%clk 0:02:40.3]} 12... Nf5
{[%clk 0:02:52]} 13. Be2 {[%clk 0:02:35]} 13... h5 {[%clk 0:02:27.8]} 14. h3
{[%clk 0:02:23.5]} 14... Nxg3 {[%clk 0:02:19.9]} 15. fxg3 {[%clk 0:02:23]} 15...
Rg8 {[%clk 0:02:11.1]} 16. h4 {[%clk 0:02:10.6]} 16... Bc6 {[%clk 0:02:11.2]}
17. O-O {[%clk 0:02:09.4]} 17... Nd7 {[%clk 0:02:06.2]} 18. Qc2 {[%clk
0:01:49.1]} 18... Qe7 {[%clk 0:02:00.7]} 19. Qh7 {[%clk 0:01:41.4]} 19... Rf8
{[%clk 0:01:52.1]} 20. Qxh5 {[%clk 0:01:35.8]} 20... Bc5 {[%clk 0:01:51.7]} 21.
Nd1 {[%clk 0:01:23.5]} 21... O-O-O {[%clk 0:01:41.9]} 22. a3 {[%clk 0:01:16.9]}
22... Bb6 {[%clk 0:00:51.1]} 23. b4 {[%clk 0:01:07.5]} 23... Ba4 {[%clk
0:00:51]} 24. c5 {[%clk 0:00:41.4]} 24... dxc5 {[%clk 0:00:41.5]} 25. Nc4 {[%clk
0:00:41.8]} 25... cxb4 {[%clk 0:00:33.2]} 26. axb4 {[%clk 0:00:35]} 26... Qxb4
{[%clk 0:00:29.1]} 27. Qxg4 {[%clk 0:00:33.9]} 27... Kb8 {[%clk 0:00:21.1]} 28.
Nxe5 {[%clk 0:00:21.8]} 28... Qxg4 {[%clk 0:00:22]} 29. Nxg4 {[%clk 0:00:20.3]}
29... Bxd1 {[%clk 0:00:17.6]} 30. Raxd1 {[%clk 0:00:20.4]} 30... f5 {[%clk
0:00:18.5]} 31. Nh6 {[%clk 0:00:19.9]} 31... Bxe3+ {[%clk 0:00:18.9]} 32. Kh2
{[%clk 0:00:17.6]} 32... Bxh6 {[%clk 0:00:19.8]} 33. Bd3 {[%clk 0:00:15]} 33...
f4 {[%clk 0:00:12.1]} 34. g4 {[%clk 0:00:13.9]} 34... Ne5 {[%clk 0:00:12.8]} 35.
Bf5 {[%clk 0:00:13.1]} 35... Rxd1 {[%clk 0:00:11.9]} 36. Rxd1 {[%clk 0:00:13.8]}
36... f3 {[%clk 0:00:10.9]} 37. gxf3 {[%clk 0:00:10.1]} 37... Nxf3+ {[%clk
0:00:11.8]} 38. Kg3 {[%clk 0:00:10.8]} 38... Ne5 {[%clk 0:00:10.5]} 39. g5
{[%clk 0:00:11.2]} 39... Bg7 {[%clk 0:00:10]} 40. Be4 {[%clk 0:00:11.3]} 40...
Nf7 {[%clk 0:00:07.3]} 41. Rf1 {[%clk 0:00:09.4]} 41... Nd6 {[%clk 0:00:05]} 42.
Rxf8+ {[%clk 0:00:06.5]} 42... Bxf8 {[%clk 0:00:05.9]} 43. Bd3 {[%clk
0:00:07.2]} 43... Kc8 {[%clk 0:00:03.1]} 44. h5 {[%clk 0:00:06.5]} 44... Kd7
{[%clk 0:00:03.7]} 45. Kg4 {[%clk 0:00:07]} 45... Ke7 {[%clk 0:00:03.9]} 46. h6
{[%clk 0:00:06.1]} 46... Nf7 {[%clk 0:00:02.4]} 47. Kh5 {[%clk 0:00:02.1]} 47...
Ne5 {[%clk 0:00:03]} 48. Be4 {[%clk 0:00:02]} 48... b5 {[%clk 0:00:02.4]} 49. g6
{[%clk 0:00:02.3]} 49... Nxg6 {[%clk 0:00:02]} 0-1

[Event "Early-Titled-Tuesday-Blitz-January-30-2024"]
[Site "Chess.com"]
[Date "2024.01.30"]
[Round "8"]
[White "crazy_but_lazy"]
[Black "vlad10898"]
[Result "0-1"]
[WhiteElo "2590"]
[BlackElo "2809"]
[TimeControl "180+1"]
[EndTime "9:31:01 PST"]
[Termination "vlad10898 won by resignation"]

1. c4 {[%clk 0:02:56.8]} 1... e6 {[%clk 0:02:58.1]} 2. d4 {[%clk 0:02:54.7]}
2... d5 {[%clk 0:02:58.2]} 3. Nf3 {[%clk 0:02:55.3]} 3... Nf6 {[%clk 0:02:58]}
4. g3 {[%clk 0:02:53.4]} 4... dxc4 {[%clk 0:02:56.6]} 5. Bg2 {[%clk 0:02:51.6]}
5... Nc6 {[%clk 0:02:54.5]} 6. O-O {[%clk 0:02:50.5]} 6... Rb8 {[%clk
0:02:53.3]} 7. a4 {[%clk 0:02:45.8]} 7... b6 {[%clk 0:02:45.6]} 8. Bg5 {[%clk
0:02:37.6]} 8... Be7 {[%clk 0:02:34.1]} 9. e3 {[%clk 0:02:17.1]} 9... O-O {[%clk
0:02:19.7]} 10. Qe2 {[%clk 0:02:08.1]} 10... Ba6 {[%clk 0:02:17.3]} 11. Nbd2
{[%clk 0:02:04.7]} 11... Nd5 {[%clk 0:01:57.8]} 12. Bxe7 {[%clk 0:02:01.3]}
12... Qxe7 {[%clk 0:01:58.7]} 13. Rfc1 {[%clk 0:01:53.1]} 13... c3 {[%clk
0:01:46.1]} 14. Qxa6 {[%clk 0:01:52.2]} 14... cxb2 {[%clk 0:01:45.3]} 15. Rab1
{[%clk 0:01:34.8]} 15... bxc1=Q+ {[%clk 0:01:43.4]} 16. Rxc1 {[%clk 0:01:35.6]}
16... Ndb4 {[%clk 0:01:28.3]} 17. Qc4 {[%clk 0:01:28.2]} 17... Rfc8 {[%clk
0:01:16.8]} 18. Nb3 {[%clk 0:01:18.2]} 18... Qd6 {[%clk 0:00:47.4]} 19. Ng5
{[%clk 0:00:51.8]} 19... h6 {[%clk 0:00:31.5]} 20. Ne4 {[%clk 0:00:23.2]} 20...
Qe7 {[%clk 0:00:31.3]} 21. Nc3 {[%clk 0:00:20.5]} 21... Na5 {[%clk 0:00:24.3]}
22. Nxa5 {[%clk 0:00:20.2]} 22... bxa5 {[%clk 0:00:25.2]} 23. Ne4 {[%clk
0:00:18.8]} 23... Rb6 {[%clk 0:00:16.1]} 24. Nc5 {[%clk 0:00:17.3]} 24... c6
{[%clk 0:00:16.1]} 25. h4 {[%clk 0:00:16.6]} 25... Rcb8 {[%clk 0:00:16.3]} 26.
e4 {[%clk 0:00:15.7]} 26... Qd8 {[%clk 0:00:14.4]} 27. Bf1 {[%clk 0:00:13.4]}
27... Qd6 {[%clk 0:00:10.7]} 28. Be2 {[%clk 0:00:11.7]} 28... e5 {[%clk
0:00:10.9]} 29. dxe5 {[%clk 0:00:09.8]} 29... Qxe5 {[%clk 0:00:10.1]} 30. Nd7
{[%clk 0:00:09.4]} 30... Qe6 {[%clk 0:00:10.5]} 31. Qxe6 {[%clk 0:00:05.7]}
31... fxe6 {[%clk 0:00:10.5]} 32. Nxb8 {[%clk 0:00:04.8]} 32... Rxb8 {[%clk
0:00:10.8]} 33. f4 {[%clk 0:00:04.7]} 33... Kf7 {[%clk 0:00:10.9]} 34. Kf2
{[%clk 0:00:04.9]} 34... Ke7 {[%clk 0:00:11]} 35. Ke3 {[%clk 0:00:05.3]} 35...
Rd8 {[%clk 0:00:11.2]} 36. h5 {[%clk 0:00:04.6]} 36... Rd7 {[%clk 0:00:06.1]}
37. Rc5 {[%clk 0:00:05]} 37... Rd6 {[%clk 0:00:03.1]} 38. Rxa5 {[%clk
0:00:04.5]} 38... Nc2+ {[%clk 0:00:03.5]} 39. Kf2 {[%clk 0:00:04.1]} 39... Rd2
{[%clk 0:00:03.7]} 40. Rxa7+ {[%clk 0:00:04.2]} 40... Kd6 {[%clk 0:00:03.9]} 41.
e5+ {[%clk 0:00:03.2]} 41... Kc5 {[%clk 0:00:04.4]} 42. Kf1 {[%clk 0:00:02.3]}
42... Ne3+ {[%clk 0:00:04.2]} 43. Ke1 {[%clk 0:00:03]} 43... Ra2 {[%clk
0:00:04]} 44. Rxg7 {[%clk 0:00:02.6]} 44... Nc2+ {[%clk 0:00:03.9]} 45. Kf2
{[%clk 0:00:02.7]} 45... Nd4 {[%clk 0:00:04.2]} 46. g4 {[%clk 0:00:01.6]} 46...
Rxe2+ {[%clk 0:00:04.1]} 47. Kg3 {[%clk 0:00:02.1]} 47... Re3+ {[%clk
0:00:04.6]} 48. Kg2 {[%clk 0:00:01.5]} 48... Rf3 {[%clk 0:00:05]} 49. Rg6 {[%clk
0:00:01.8]} 49... Rxf4 {[%clk 0:00:05]} 50. a5 {[%clk 0:00:01.7]} 50... Kb5
{[%clk 0:00:04.3]} 51. Rxh6 {[%clk 0:00:01.3]} 51... Rxg4+ {[%clk 0:00:04.6]}
52. Kf2 {[%clk 0:00:01.9]} 52... Kxa5 {[%clk 0:00:03.6]} 53. Rh8 {[%clk
0:00:01.5]} 53... Rh4 {[%clk 0:00:04.1]} 54. Ke3 {[%clk 0:00:01.6]} 54... Nf5+
{[%clk 0:00:04.1]} 55. Kd3 {[%clk 0:00:02.2]} 55... Kb5 {[%clk 0:00:04.3]} 56.
Re8 {[%clk 0:00:02.4]} 56... Rxh5 {[%clk 0:00:03.5]} 57. Rxe6 {[%clk 0:00:03]}
57... Kc5 {[%clk 0:00:04.2]} 58. Rh6 {[%clk 0:00:02.7]} 58... Rxh6 {[%clk
0:00:03.9]} 0-1

[Event "Early-Titled-Tuesday-Blitz-January-30-2024"]
[Site "Chess.com"]
[Date "2024.01.30"]
[Round "8"]
[White "Kostukov_Alex"]
[Black "Jojo_898"]
[Result "0-1"]
[WhiteElo "2302"]
[BlackElo "2447"]
[TimeControl "180+1"]
[EndTime "9:31:01 PST"]
[Termination "Jojo_898 won by checkmate"]

1. g3 {[%clk 0:03:00.9]} 1... Nf6 {[%clk 0:02:57.4]} 2. Bg2 {[%clk 0:03:00.7]}
2... g6 {[%clk 0:02:57.1]} 3. c4 {[%clk 0:03:00.9]} 3... Bg7 {[%clk 0:02:57.1]}
4. Nf3 {[%clk 0:03:01.2]} 4... O-O {[%clk 0:02:56.8]} 5. O-O {[%clk 0:03:01.2]}
5... c6 {[%clk 0:02:51.1]} 6. d4 {[%clk 0:03:01.2]} 6... d5 {[%clk 0:02:51.2]}
7. cxd5 {[%clk 0:03:02.1]} 7... cxd5 {[%clk 0:02:51]} 8. Nc3 {[%clk 0:03:02.8]}
8... Nc6 {[%clk 0:02:51.2]} 9. Bf4 {[%clk 0:03:02.9]} 9... Bg4 {[%clk
0:02:50.7]} 10. Ne5 {[%clk 0:03:02.9]} 10... Bf5 {[%clk 0:02:46.6]} 11. Nxc6
{[%clk 0:03:00.9]} 11... bxc6 {[%clk 0:02:46.5]} 12. Rc1 {[%clk 0:03:00.5]}
12... Qd7 {[%clk 0:02:46]} 13. Na4 {[%clk 0:02:58.4]} 13... Bh3 {[%clk
0:02:44.6]} 14. Nc5 {[%clk 0:02:57.3]} 14... Qg4 {[%clk 0:02:39.2]} 15. e3
{[%clk 0:02:43.5]} 15... Qc8 {[%clk 0:02:35.2]} 16. Qa4 {[%clk 0:02:37.1]} 16...
Nh5 {[%clk 0:02:01.2]} 17. Na6 {[%clk 0:02:18.7]} 17... Nxf4 {[%clk 0:01:27.4]}
18. exf4 {[%clk 0:02:10.4]} 18... Bxg2 {[%clk 0:01:26.5]} 19. Kxg2 {[%clk
0:02:08.7]} 19... Qf5 {[%clk 0:01:22.8]} 20. Rfd1 {[%clk 0:01:32.4]} 20... Qe4+
{[%clk 0:01:22.2]} 21. Kg1 {[%clk 0:01:32.2]} 21... Rfc8 {[%clk 0:01:12.3]} 22.
Rxc6 {[%clk 0:01:21.6]} 22... Qe2 {[%clk 0:01:11.4]} 23. Rdc1 {[%clk 0:01:10.8]}
23... Rxc6 {[%clk 0:01:06.2]} 24. Qxc6 {[%clk 0:01:11.7]} 24... Rf8 {[%clk
0:01:05.2]} 25. Qc2 {[%clk 0:00:59.8]} 25... Qxa6 {[%clk 0:01:04.5]} 26. Qc5
{[%clk 0:00:48.8]} 26... Qxa2 {[%clk 0:01:02.2]} 27. Rc2 {[%clk 0:00:43.2]}
27... e6 {[%clk 0:00:58.7]} 28. h4 {[%clk 0:00:42.5]} 28... Qa4 {[%clk
0:00:57.7]} 29. Rd2 {[%clk 0:00:39.8]} 29... h5 {[%clk 0:00:53]} 30. Kg2 {[%clk
0:00:30.3]} 30... Qa1 {[%clk 0:00:49.5]} 31. f5 {[%clk 0:00:27.7]} 31... Qe1
{[%clk 0:00:45.6]} 32. Rc2 {[%clk 0:00:14.9]} 32... Qe4+ {[%clk 0:00:43]} 33.
Kh2 {[%clk 0:00:12.8]} 33... Bxd4 {[%clk 0:00:41.1]} 34. Qc6 {[%clk 0:00:10.2]}
34... Qxf5 {[%clk 0:00:39.3]} 35. b4 {[%clk 0:00:09.6]} 35... Bxf2 {[%clk
0:00:37.9]} 36. b5 {[%clk 0:00:10.1]} 36... Qf3 {[%clk 0:00:28.2]} 37. Qc7
{[%clk 0:00:09.9]} 37... Bb6 {[%clk 0:00:24.3]} 38. Qe5 {[%clk 0:00:05.7]} 38...
Qd1 {[%clk 0:00:20.5]} 39. Rg2 {[%clk 0:00:05.3]} 39... Qd3 {[%clk 0:00:16.5]}
40. Qg5 {[%clk 0:00:04.8]} 40... Qxb5 {[%clk 0:00:16]} 41. g4 {[%clk 0:00:05.1]}
41... Bc7+ {[%clk 0:00:15.2]} 42. Kg1 {[%clk 0:00:03]} 42... Qb1+ {[%clk
0:00:15.1]} 43. Kf2 {[%clk 0:00:03.6]} 43... Qc2+ {[%clk 0:00:14.4]} 44. Kf3
{[%clk 0:00:04.5]} 44... Qd3+ {[%clk 0:00:14.3]} 45. Kf2 {[%clk 0:00:05.4]}
45... Bb6+ {[%clk 0:00:14.3]} 46. Ke1 {[%clk 0:00:04.3]} 46... Qe4+ {[%clk
0:00:13.8]} 47. Re2 {[%clk 0:00:03.8]} 47... Qh1+ {[%clk 0:00:13.8]} 48. Kd2
{[%clk 0:00:04.2]} 48... Ba5+ {[%clk 0:00:12.8]} 49. Kc2 {[%clk 0:00:04.1]}
49... hxg4 {[%clk 0:00:10.7]} 50. Qxg4 {[%clk 0:00:03.5]} 50... Rc8+ {[%clk
0:00:10.6]} 51. Kd3 {[%clk 0:00:03.4]} 51... Qd1+ {[%clk 0:00:10.6]} 52. Ke3
{[%clk 0:00:03.7]} 52... Rc3+ {[%clk 0:00:10]} 53. Kf2 {[%clk 0:00:03.8]} 53...
Bb6+ {[%clk 0:00:10.5]} 54. Kg2 {[%clk 0:00:02.5]} 54... Qg1# {[%clk 0:00:11.1]}
0-1

[Event "Early-Titled-Tuesday-Blitz-January-30-2024"]
[Site "Chess.com"]
[Date "2024.01.30"]
[Round "8"]
[White "Balla_Tamas"]
[Black "nindjaxx8"]
[Result "0-1"]
[WhiteElo "2416"]
[BlackElo "2596"]
[TimeControl "180+1"]
[EndTime "9:31:06 PST"]
[Termination "nindjaxx8 won by resignation"]

1. e4 {[%clk 0:03:00.9]} 1... e6 {[%clk 0:02:52]} 2. d4 {[%clk 0:03:00.6]} 2...
d5 {[%clk 0:02:51.7]} 3. Nd2 {[%clk 0:03:01.2]} 3... c5 {[%clk 0:02:50.6]} 4.
exd5 {[%clk 0:03:01.3]} 4... Qxd5 {[%clk 0:02:51.5]} 5. Ngf3 {[%clk 0:03:01.6]}
5... cxd4 {[%clk 0:02:51.3]} 6. Bc4 {[%clk 0:03:02.3]} 6... Qd6 {[%clk
0:02:51.9]} 7. O-O {[%clk 0:03:02.9]} 7... Nf6 {[%clk 0:02:52.6]} 8. Nb3 {[%clk
0:03:03.3]} 8... Nc6 {[%clk 0:02:53]} 9. Nbxd4 {[%clk 0:03:02.7]} 9... Nxd4
{[%clk 0:02:53.9]} 10. Nxd4 {[%clk 0:03:02.4]} 10... Be7 {[%clk 0:02:53.6]} 11.
c3 {[%clk 0:03:00.2]} 11... O-O {[%clk 0:02:51.9]} 12. Bg5 {[%clk 0:03:00.3]}
12... Qc7 {[%clk 0:02:47.8]} 13. Bb3 {[%clk 0:02:59.8]} 13... a5 {[%clk
0:02:45.5]} 14. Re1 {[%clk 0:02:59.6]} 14... h6 {[%clk 0:02:40.3]} 15. Bh4
{[%clk 0:02:59.4]} 15... Re8 {[%clk 0:02:39.8]} 16. Bc2 {[%clk 0:02:59.1]} 16...
Bd7 {[%clk 0:02:36.6]} 17. Qd3 {[%clk 0:02:58.6]} 17... g6 {[%clk 0:02:33.4]}
18. Nxe6 {[%clk 0:02:27.3]} 18... Bxe6 {[%clk 0:02:17.9]} 19. Rxe6 {[%clk
0:02:26.7]} 19... g5 {[%clk 0:02:06.6]} 20. Bg3 {[%clk 0:02:11.3]} 20... Qc5
{[%clk 0:01:58.3]} 21. Re5 {[%clk 0:02:03.5]} 21... Qb6 {[%clk 0:01:56.1]} 22.
Rae1 {[%clk 0:02:02.9]} 22... Rad8 {[%clk 0:01:42.2]} 23. Rxe7 {[%clk 0:01:53]}
23... Rxe7 {[%clk 0:01:33.6]} 24. Qf1 {[%clk 0:01:18.3]} 24... Rxe1 {[%clk
0:01:26]} 25. Qxe1 {[%clk 0:01:18.7]} 25... Qxb2 {[%clk 0:01:26.6]} 26. Bb3
{[%clk 0:01:14.2]} 26... a4 {[%clk 0:01:20.6]} 27. Bxa4 {[%clk 0:01:13.5]} 27...
Qxa2 {[%clk 0:01:20.7]} 28. Bb5 {[%clk 0:01:09]} 28... Qb3 {[%clk 0:01:20]} 29.
Bf1 {[%clk 0:01:07.5]} 29... Qe6 {[%clk 0:01:15.4]} 30. Qb1 {[%clk 0:01:03.9]}
30... Rd7 {[%clk 0:01:14.7]} 31. h3 {[%clk 0:01:03.8]} 31... Kg7 {[%clk
0:01:14.2]} 32. Kh2 {[%clk 0:00:58.5]} 32... Ne4 {[%clk 0:01:13.1]} 33. Bb8
{[%clk 0:00:49]} 33... Nxf2 {[%clk 0:00:56.4]} 34. Qb5 {[%clk 0:00:48.7]} 34...
Ne4 {[%clk 0:00:55.1]} 35. Be5+ {[%clk 0:00:47.4]} 35... f6 {[%clk 0:00:53.6]}
36. Bd4 {[%clk 0:00:47.5]} 36... Qd6+ {[%clk 0:00:49.1]} 37. Kg1 {[%clk
0:00:45.1]} 37... Rc7 {[%clk 0:00:46.4]} 38. Qd3 {[%clk 0:00:22.3]} 38... Nxc3
{[%clk 0:00:40]} 39. Qe3 {[%clk 0:00:17.5]} 39... Nd5 {[%clk 0:00:39.1]} 40. Qf3
{[%clk 0:00:17]} 40... Nf4 {[%clk 0:00:37.4]} 41. Be3 {[%clk 0:00:13.8]} 41...
Re7 {[%clk 0:00:32.9]} 42. Bf2 {[%clk 0:00:12.2]} 42... Qd5 {[%clk 0:00:31]} 43.
Qc3 {[%clk 0:00:09.5]} 43... Ne2+ {[%clk 0:00:26.3]} 44. Bxe2 {[%clk 0:00:10]}
44... Rxe2 {[%clk 0:00:27]} 45. Qc7+ {[%clk 0:00:10.6]} 45... Qf7 {[%clk
0:00:23.5]} 46. Qb6 {[%clk 0:00:10.7]} 46... Re6 {[%clk 0:00:23.7]} 47. Qb2
{[%clk 0:00:09.5]} 47... Qd7 {[%clk 0:00:24]} 48. Bd4 {[%clk 0:00:09.6]} 48...
Rd6 {[%clk 0:00:24]} 49. Bc3 {[%clk 0:00:09.4]} 49... Rc6 {[%clk 0:00:21]} 50.
Bd4 {[%clk 0:00:09.4]} 50... Rd6 {[%clk 0:00:20.2]} 51. Bc3 {[%clk 0:00:09.9]}
51... b5 {[%clk 0:00:20.8]} 52. Qb4 {[%clk 0:00:09.7]} 52... Re6 {[%clk
0:00:20.7]} 53. h4 {[%clk 0:00:09.2]} 53... Qd5 {[%clk 0:00:20.5]} 54. hxg5
{[%clk 0:00:08.2]} 54... hxg5 {[%clk 0:00:20.4]} 55. Qg4 {[%clk 0:00:03.8]}
55... Qc4 {[%clk 0:00:18.8]} 56. Qxg5+ {[%clk 0:00:03.7]} 56... Kf7 {[%clk
0:00:15.4]} 57. Qh5+ {[%clk 0:00:04.3]} 57... Ke7 {[%clk 0:00:15]} 58. Qh7+
{[%clk 0:00:04.7]} 58... Kd6 {[%clk 0:00:15.2]} 59. Ba5 {[%clk 0:00:05]} 59...
Qd4+ {[%clk 0:00:13.7]} 60. Kh1 {[%clk 0:00:05.1]} 60... Qa1+ {[%clk 0:00:11.7]}
61. Kh2 {[%clk 0:00:05]} 61... Qxa5 {[%clk 0:00:11.9]} 62. Qd3+ {[%clk
0:00:05.7]} 62... Kc7 {[%clk 0:00:08.4]} 63. Qd5 {[%clk 0:00:04.3]} 63... Qb6
{[%clk 0:00:07.9]} 64. Qc5+ {[%clk 0:00:04.3]} 64... Qxc5 {[%clk 0:00:08.1]} 0-1

[Event "Early-Titled-Tuesday-Blitz-January-30-2024"]
[Site "Chess.com"]
[Date "2024.01.30"]
[Round "8"]
[White "hakanazeri2"]
[Black "sokidze"]
[Result "1-0"]
[WhiteElo "2620"]
[BlackElo "2832"]
[TimeControl "180+1"]
[EndTime "9:31:07 PST"]
[Termination "hakanazeri2 won by resignation"]

1. c4 {[%clk 0:02:50.3]} 1... c5 {[%clk 0:02:59.2]} 2. Nf3 {[%clk 0:02:50.5]}
2... Nf6 {[%clk 0:02:58.8]} 3. Nc3 {[%clk 0:02:46]} 3... Nc6 {[%clk 0:02:58.9]}
4. g3 {[%clk 0:02:45.3]} 4... d5 {[%clk 0:02:56.3]} 5. d4 {[%clk 0:02:45.5]}
5... cxd4 {[%clk 0:02:41]} 6. Nxd4 {[%clk 0:02:45.9]} 6... dxc4 {[%clk
0:02:41.2]} 7. Nxc6 {[%clk 0:02:45.9]} 7... Qxd1+ {[%clk 0:02:41.8]} 8. Nxd1
{[%clk 0:02:46.6]} 8... bxc6 {[%clk 0:02:42.4]} 9. Bg2 {[%clk 0:02:47.3]} 9...
Nd5 {[%clk 0:02:41]} 10. Ne3 {[%clk 0:02:47.5]} 10... e6 {[%clk 0:02:41]} 11.
Nxc4 {[%clk 0:02:48]} 11... Bb4+ {[%clk 0:02:40.8]} 12. Bd2 {[%clk 0:02:46.9]}
12... Rb8 {[%clk 0:02:34.9]} 13. b3 {[%clk 0:02:26.7]} 13... Ba6 {[%clk
0:02:30.5]} 14. Rc1 {[%clk 0:02:26.2]} 14... O-O {[%clk 0:02:12.5]} 15. Ne5
{[%clk 0:01:55.7]} 15... Ba3 {[%clk 0:01:43.6]} 16. Rc2 {[%clk 0:01:42.7]} 16...
Nb4 {[%clk 0:01:37.8]} 17. Bxb4 {[%clk 0:01:33.7]} 17... Bxb4+ {[%clk
0:01:36.7]} 18. Kf1 {[%clk 0:01:34]} 18... Rfd8 {[%clk 0:01:31.2]} 19. Bf3
{[%clk 0:01:33.5]} 19... Rd1+ {[%clk 0:00:54.7]} 20. Kg2 {[%clk 0:01:33.1]}
20... Rxh1 {[%clk 0:00:55.3]} 21. Kxh1 {[%clk 0:01:34]} 21... c5 {[%clk
0:00:55.3]} 22. Nc6 {[%clk 0:01:29.9]} 22... Rb6 {[%clk 0:00:47.4]} 23. Nxb4
{[%clk 0:01:28.8]} 23... cxb4 {[%clk 0:00:47.9]} 24. Rc7 {[%clk 0:01:26.7]}
24... g6 {[%clk 0:00:46.7]} 25. Rxa7 {[%clk 0:01:24.4]} 25... Kg7 {[%clk
0:00:46.8]} 26. Kg2 {[%clk 0:01:16.7]} 26... Kf6 {[%clk 0:00:46.4]} 27. e3
{[%clk 0:01:07.4]} 27... Rd6 {[%clk 0:00:43.9]} 28. h4 {[%clk 0:00:54.1]} 28...
h6 {[%clk 0:00:40.4]} 29. g4 {[%clk 0:00:52.7]} 29... g5 {[%clk 0:00:39.7]} 30.
hxg5+ {[%clk 0:00:52.1]} 30... hxg5 {[%clk 0:00:40.6]} 31. Ra8 {[%clk
0:00:40.8]} 31... Rb6 {[%clk 0:00:32.8]} 32. Ra7 {[%clk 0:00:33.4]} 32... Bd3
{[%clk 0:00:28.9]} 33. Rc7 {[%clk 0:00:29.6]} 33... Bb1 {[%clk 0:00:19.9]} 34.
Ra7 {[%clk 0:00:19.5]} 34... Rb5 {[%clk 0:00:18.3]} 35. Bc6 {[%clk 0:00:17.9]}
35... Rb8 {[%clk 0:00:13.4]} 36. Kg3 {[%clk 0:00:13.2]} 36... Rc8 {[%clk
0:00:12.4]} 37. Bf3 {[%clk 0:00:13.3]} 37... Rc2 {[%clk 0:00:10.3]} 38. Be4
{[%clk 0:00:12.4]} 38... Rxa2 {[%clk 0:00:10.4]} 39. Rxa2 {[%clk 0:00:11.5]}
39... Bxa2 {[%clk 0:00:11.3]} 40. Bc2 {[%clk 0:00:12.1]} 40... Ke5 {[%clk
0:00:09.1]} 41. Kf3 {[%clk 0:00:10.7]} 41... f5 {[%clk 0:00:05.3]} 42. Ke2
{[%clk 0:00:10.9]} 42... fxg4 {[%clk 0:00:03.9]} 43. Kd2 {[%clk 0:00:11.4]}
43... Kd5 {[%clk 0:00:03]} 44. Kc1 {[%clk 0:00:11.3]} 44... g3 {[%clk
0:00:02.1]} 45. fxg3 {[%clk 0:00:09.3]} 45... Bxb3 {[%clk 0:00:02.7]} 46. Bxb3+
{[%clk 0:00:07.4]} 46... Ke4 {[%clk 0:00:03.4]} 47. Bxe6 {[%clk 0:00:05.6]}
47... Kxe3 {[%clk 0:00:03.4]} 48. g4 {[%clk 0:00:06.1]} 48... Kf4 {[%clk
0:00:02.3]} 49. Kb2 {[%clk 0:00:06.4]} 49... Ke5 {[%clk 0:00:02]} 50. Bf5 {[%clk
0:00:06.9]} 50... Kd4 {[%clk 0:00:02.3]} 51. Kb3 {[%clk 0:00:07.8]} 51... Kc5
{[%clk 0:00:02.9]} 52. Bg6 {[%clk 0:00:07.6]} 52... Kb5 {[%clk 0:00:03.1]} 53.
Bd3+ {[%clk 0:00:07.7]} 53... Kc5 {[%clk 0:00:03.7]} 54. Be2 {[%clk 0:00:08.3]}
54... Kd4 {[%clk 0:00:03.6]} 55. Kxb4 {[%clk 0:00:08.9]} 55... Ke3 {[%clk
0:00:04.3]} 56. Bc4 {[%clk 0:00:08.9]} 56... Kf4 {[%clk 0:00:04.6]} 57. Be6
{[%clk 0:00:09.8]} 1-0